fUSD/lending_fUSD_20250113
["ID","MTS","AMOUNT","RATE_DAILY","PERIOD"]
[348787751,1736783442866,-500.0,0.00012175,2]
[348787753,1736783442876,-500.0,0.00012175,2]
[348787755,1736783442886,-542.82,0.00012175,2]
[348787756,1736783442895,-562.02,0.00012175,2]
[348787757,1736783442905,-630.11,0.00012175,2]
[348787758,1736783442914,-553.63,0.00012175,2]
[348787759,1736783442923,-547.32,0.00012175,2]
[348787760,1736783442932,-500.0,0.00012175,2]
[348787761,1736783442942,-500.0,0.00012175,2]
[348787762,1736783442951,-549.4,0.00012175,2]
[348787763,1736783442961,-500.0,0.00012175,2]
[348787764,1736783442970,-609.22,0.00012175,2]
[348787765,1736783442979,-562.35,0.00012175,2]
[348787767,1736783442989,-512.92,0.00012175,2]
[348787769,1736783442998,-500.0,0.00012175,2]
[348787771,1736783443008,-572.82,0.00012175,2]
[348787773,1736783443017,-1850.22,0.00012175,2]
[348787775,1736783443028,-500.0,0.00012175,2]
[348787777,1736783443037,-500.0,0.00012175,2]
[348787779,1736783443047,-2053.85,0.00012175,2]
[348787781,1736783443057,-500.0,0.00012175,2]
[348787783,1736783443067,-500.0,0.00012175,2]
[348787785,1736783443077,-1025.72,0.00012175,2]
[348787787,1736783443086,-500.0,0.00012175,2]
[348787789,1736783443096,-500.0,0.00012175,2]
[348787791,1736783443107,-500.0,0.00012175,2]
[348787793,1736783443116,-500.0,0.00012175,2]
[348787795,1736783443126,-1158.92,0.00012175,2]
[348787797,1736783443136,-500.0,0.00012175,2]
[348787799,1736783443146,-658.81,0.00012175,2]
[348787801,1736783443155,-1029.25,0.00012175,2]
[348787803,1736783443166,-500.0,0.00012175,2]
[348787805,1736783443179,-623.41,0.00012175,2]
[348787807,1736783443189,-2169.86,0.00012176,2]
[348787809,1736783443199,-1121.06,0.00012176,2]
[348787811,1736783443209,-2938.13,0.00012176,2]
[348787813,1736783443219,-789.65,0.00012176,2]
[348787816,1736783443229,-924.34,0.00012176,2]
[348787817,1736783443239,-859.81,0.00012176,2]
[348787819,1736783443248,-981.09,0.00012176,2]
[348787822,1736783443258,-568.73,0.00012176,2]
[348787824,1736783443267,-720.68,0.00012176,2]
[348787826,1736783443277,-500.0,0.00012176,2]
[348787828,1736783443288,-751.87,0.00012176,2]
[348787830,1736783443298,-706.24,0.00012176,2]
[348787832,1736783443308,-642.4,0.00012176,2]
[348787834,1736783443322,-1077.16,0.00012177,2]
[348787836,1736783443332,-1222.78,0.00012177,2]
[348787838,1736783443342,-1268.0,0.00012179,2]
[348787840,1736783443352,-2016.0,0.00012179,2]
[348787842,1736783443362,-150.0,0.00012179,2]
[348787844,1736783443372,-635.0,0.00012179,2]
[348787846,1736783443384,-566.0,0.00012179,2]
[348787848,1736783443395,-1861.0,0.00012179,2]
[348787850,1736783443405,-820.0,0.00012179,2]
[348787852,1736783443416,-1259.0,0.00012179,2]
[348787854,1736783443426,-2944.0,0.00012179,2]
[348787856,1736783443436,-907.0,0.00012179,2]
[348787858,1736783443447,-537.0,0.00012179,2]
[348787860,1736783443457,-3979.0,0.00012179,2]
[348787862,1736783443467,-250.0,0.00012179,2]
[348787864,1736783443477,-3897.0,0.00012179,2]
[348787866,1736783443487,-152.152,0.00012179,2]
[348787868,1736783443497,-150.0,0.00012179,2]
[348787870,1736783443507,-150.0,0.00012179,2]
[348787873,1736783443517,-164.76,0.00012179,2]
[348787875,1736783443527,-276.367,0.00012179,2]
[348787877,1736783443537,-9629.0,0.00012179,2]
[348787879,1736783443547,-1174.0,0.00012179,2]
[348787881,1736783443557,-653.82,0.00012191,2]
[348787883,1736783443566,-5031.54977211,0.000122,2]
[348787885,1736783443576,-1601.83602863,0.000122,2]
[348787887,1736783443586,-16821.82537431,0.00012268,2]
[348787889,1736783443595,-250000.0,0.0001227,2]
[348787891,1736783443605,-801.0,0.00012274,2]
[348787893,1736783443614,-2011.0,0.00012274,2]
[348787895,1736783443623,-22673.0,0.00012274,2]
[348787897,1736783443634,-758.0,0.00012274,2]
[348787899,1736783443644,-507.95,0.00012288,2]
[348787901,1736783443654,-500.0,0.00012288,2]
[348787903,1736783443663,-500.0,0.00012288,2]
[348787905,1736783443673,-500.0,0.00012288,2]
[348787907,1736783443682,-500.0,0.00012288,2]
[348787909,1736783443692,-500.0,0.00012288,2]
[348787911,1736783443701,-500.0,0.00012289,2]
[348787913,1736783443711,-500.0,0.00012289,2]
[348787915,1736783443720,-124790.28057978,0.00012297,5]
[348787917,1736783443730,-500.0,0.00012299,2]
[348787919,1736783443741,-502.75653172,0.00012299,2]
[348787921,1736783443750,-500.0,0.00012299,2]
[348787923,1736783443759,-503.81658871,0.00012299,2]
[348787925,1736783443769,-528.48766982,0.00012299,2]
[348787927,1736783443779,-532.2596745,0.00012299,2]
[348787929,1736783443789,-500.0,0.00012299,2]
[348787931,1736783443800,-191.82955791,0.00012299,2]
[348787933,1736783443809,-620.7,0.00012299,2]
[348787935,1736783443819,-623.35,0.00012299,2]
[348787937,1736783443830,-500.0,0.00012299,2]
[348787939,1736783443840,-988.86,0.00012299,2]
[348787941,1736783443849,-500.0,0.00012299,2]
[348787943,1736783443859,-500.0,0.00012299,2]
[348787945,1736783443868,-789.45,0.00012299,2]
[348787947,1736783443878,-1389.63,0.00012299,2]
[348787949,1736783443887,-818.29,0.00012299,2]
[348787951,1736783443898,-618.63,0.00012299,2]
[348787953,1736783443907,-253.82508,0.00012299,2]
[348787955,1736783443918,-1496.57,0.00012299,2]
[348787957,1736783443928,-356.094932,0.00012299,2]
[348787959,1736783443938,-500.0,0.00012299,2]
[348787961,1736783443948,-500.0,0.00012299,2]
[348787963,1736783443958,-500.0,0.00012299,2]
[348787965,1736783443967,-178.047471,0.00012299,2]
[348787967,1736783443976,-500.0,0.00012299,2]
[348787969,1736783443986,-500.0,0.00012299,2]
[348787971,1736783443996,-2049.99,0.00012299,2]
[348787973,1736783444006,-190.368821,0.00012299,2]
[348787975,1736783444015,-687.06,0.00012299,2]
[348787977,1736783444024,-500.0,0.00012299,2]
[348787979,1736783444034,-190.368811,0.00012299,2]
[348787981,1736783444044,-178.047466,0.00012299,2]
[348787983,1736783444053,-754.91,0.00012299,2]
[348787985,1736783444064,-190.36881,0.00012299,2]
[348787987,1736783444074,-970.81,0.00012299,2]
[348787989,1736783444083,-944.04,0.00012299,2]
[348787991,1736783444093,-178.047466,0.00012299,2]
[348787993,1736783444102,-703.88,0.00012299,2]
[348787995,1736783444112,-2153.73,0.00012299,2]
[348787997,1736783444121,-1293.78,0.00012299,2]
[348788000,1736783444134,-190.368811,0.00012299,2]
[348788002,1736783444144,-1230.62,0.00012299,2]
[348788004,1736783444154,-178.047466,0.00012299,2]
[348788006,1736783444163,-2100.46,0.00012299,2]
[348788008,1736783444172,-1157.29,0.00012299,2]
[348788009,1736783444182,-2049.51,0.00012299,2]
[348788012,1736783444191,-300.0,0.00012299,2]
[348788014,1736783444201,-300.0,0.00012299,2]
[348788016,1736783444211,-300.0,0.00012299,2]
[348788018,1736783444222,-300.0,0.00012299,2]
[348788020,1736783444231,-300.0,0.00012299,2]
[348788022,1736783444241,-300.0,0.00012299,2]
[348788024,1736783444252,-300.0,0.00012299,2]
[348788026,1736783444262,-301.80472121,0.00012299,2]
[348788028,1736783444272,-300.0,0.00012299,2]
[348788030,1736783444282,-300.0,0.00012299,2]
[348788032,1736783444292,-300.0,0.00012299,2]
[348788034,1736783444303,-1832.0,0.00012299,2]
[348788036,1736783444315,-828664.54666239,0.000123,4]
[348788067,1736783444618,-1533.49632313,0.000123,4]
[348788069,1736783444633,-1640.41786084,0.000123,4]
[348788074,1736783444678,-500.0,0.00010804,2]
[348788077,1736783444688,-365167.75377534,0.000123,4]
[348788079,1736783444699,-4207.33534348,0.000123,4]
[348788192,1736783445894,-500.0,9.983e-05,2]
[348788194,1736783445904,-870.92,9.983e-05,2]
[348788196,1736783445914,-654.2,9.984e-05,2]
[348788198,1736783445924,-90.35849276,9.987e-05,2]
[348788200,1736783445936,-409.64150724,9.987e-05,2]
[348788202,1736783445946,-104.4548967,9.987e-05,2]
[348788205,1736783445959,-395.5451033,9.987e-05,2]
[348788207,1736783445970,-166.49407358,9.999e-05,2]
[348788209,1736783445982,-333.50592642,9.999e-05,2]
[348788211,1736783445992,-8.93707218,9.999e-05,2]
[348788213,1736783446005,-491.06292782,9.999e-05,2]
[348788215,1736783446015,-500.0,9.999e-05,2]
[348788217,1736783446025,-500.0,9.999e-05,2]
[348788219,1736783446035,-870.92,0.00010257,2]
[348788220,1736783446044,-654.2,0.00010258,2]
[348788221,1736783446054,-500.0,0.00010529,2]
[348788222,1736783446064,-500.0,0.0001053,2]
[348788223,1736783446075,-500.0,0.0001053,2]
[348788224,1736783446086,-870.92,0.00010531,2]
[348788225,1736783446096,-654.2,0.00010532,2]
[348788226,1736783446106,-500.0,0.00010804,2]
[348788227,1736783446116,-870.92,0.00010805,2]
[348788228,1736783446126,-654.2,0.00010806,2]
[348788230,1736783446137,-500.0,0.00011078,2]
[348788232,1736783446147,-870.92,0.00011079,2]
[348788234,1736783446157,-654.2,0.0001108,2]
[348788235,1736783446167,-593.19,0.00011352,2]
[348788236,1736783446177,-870.92,0.00011353,2]
[348788237,1736783446188,-654.2,0.00011354,2]
[348788238,1736783446198,-870.92,0.00011627,2]
[348788239,1736783446208,-500.20822752,0.00011628,2]
[348788240,1736783446221,-153.99177248,0.00011628,2]
[348788241,1736783446231,-386.66179907,0.00011901,2]
[348788242,1736783446243,-484.25820093,0.00011901,2]
[348788243,1736783446253,-1131.86393258,0.000123,4]
[348788244,1736783446266,-536.09511421,0.000123,4]
[348788245,1736783446279,-448.49998,0.000123,4]
[348788246,1736783446291,-8556.62056156,0.000123,4]
[348788247,1736783446302,-6348.342,0.000123,4]
[348788252,1736783446332,-500.0,0.00010803,2]
[348788253,1736783446341,-654.2,0.00011902,2]
[348788254,1736783446351,-78714.33790481,0.000123,4]
[348788255,1736783446365,-1005.2624298,0.000123,4]
[348788256,1736783446376,-562.743625,0.000123,4]
[348788257,1736783446710,-500.0,9.999e-05,2]
[348788258,1736783446720,-301.17392255,9.999e-05,2]
[348788259,1736783446732,-198.82607745,9.999e-05,2]
[348788260,1736783446742,-453.24060515,0.00010804,2]
[348788261,1736783446754,-46.75939485,0.00010804,2]
[348788262,1736783446763,-425.72,0.00011077,2]
[348788263,1736783446773,-500.0,0.00011078,2]
[348788264,1736783446783,-500.0,0.00011352,2]
[348788265,1736783446792,-500.0,0.00011626,2]
[348788266,1736783446802,-726.88554348,0.00012175,2]
[348788267,1736783446847,-500.0,9.999e-05,2]
[348788268,1736783446858,-144.03445652,0.00012175,2]
[348788269,1736783446867,-654.2,0.00012176,2]
[348788270,1736783446877,-773.60054348,0.000123,4]
[348788271,1736783446892,-6315.3454475,0.000123,4]
[348788272,1736783446903,-435.38038272,0.000123,4]
[348788273,1736783446915,-259.94963904,0.000123,4]
[348788274,1736783446927,-1001.8,0.000123,4]
[348788275,1736783446940,-618.6646,0.000123,4]
[348788276,1736783446963,-3679.000004,0.000123,4]
[348788277,1736783446975,-1165.55142291,0.000123,4]
[348788278,1736783446987,-120392.76235352,0.000123,4]
[348788279,1736783446999,-157395.6758918,0.000123,4]
[348788280,1736783447011,-8706.80558528,0.000123,4]
[348788281,1736783447023,-19123.17349961,0.000123,4]
[348788282,1736783447034,-101262.3265685,0.000123,4]
[348788283,1736783447046,-4640.75,0.000123,4]
[348788284,1736783447059,-487.00105578,0.000123,4]
[348788285,1736783447071,-3945.05623852,0.000123,4]
[348788286,1736783447083,-4014.29512236,0.000123,4]
[348788287,1736783447095,-596.0138533,0.000123,4]
[348788288,1736783447107,-809.91442546,0.000123,4]
[348788289,1736783447119,-1000.0,0.000123,4]
[348788290,1736783447370,-500.0,9.999e-05,2]
[348788291,1736783447381,-223.59999995,9.999e-05,2]
[348788292,1736783447411,-276.40000005,9.999e-05,2]
[348788293,1736783447420,-500.0,9.999e-05,2]
[348788294,1736783447430,-1104.0,0.00012179,2]
[348788295,1736783447440,-150.0,0.00012179,2]
[348788296,1736783447451,-180.073,0.00012179,2]
[348788297,1736783447463,-246.60620928,0.000122,2]
[348788298,1736783447475,-10176.19123895,0.000123,4]
[348788299,1736783447488,-2164.21383923,0.000123,4]
[348788300,1736783447502,-379.999905,0.000123,4]
[348788301,1736783447514,-2239.69967441,0.000123,4]
[348788302,1736783447528,-965.86422473,0.000123,4]
[348788303,1736783447551,-12414.49996659,0.000123,4]
[348788304,1736783447563,-29717.8824,0.000123,4]
[348788305,1736783447576,-780.26286221,0.000123,4]
[348788306,1736783447590,-514.97010049,0.000123,4]
[348788307,1736783447602,-29289.8656,0.000123,4]
[348788308,1736783447615,-436766.91152437,0.000123,4]
[348788309,1736783447625,-149797.50947733,0.000123,2]
[348788310,1736783447638,-686.70206024,0.000123,2]
[348788311,1736783447661,-653.550005,0.000123,2]
[348788312,1736783447852,-30379.48635585,0.000123,2]
[348788313,1736783447864,-17666.0,0.000123,2]
[348788314,1736783448070,-500.0,9.999e-05,2]
[348788315,1736783448080,-500.0,9.999e-05,2]
[348788316,1736783448090,-500.0,9.999e-05,2]
[348788317,1736783448099,-14920.0,0.000123,2]
[348788318,1736783448110,-1143.79236171,0.000123,2]
[348788319,1736783448121,-6127.55805276,0.000123,2]
[348788320,1736783448134,-18289.86057823,0.000123,2]
[348788321,1736783448145,-50580.91430483,0.000123,2]
[348788322,1736783448157,-9280.4446121,0.000123,2]
[348788323,1736783448183,-500.0,0.000123,2]
[348788324,1736783448194,-49281.89769817,0.000123,2]
[348788325,1736783448205,-37437.09328713,0.000123,2]
[348788326,1736783448217,-1373.14585864,0.000123,2]
[348788327,1736783448228,-301.53303754,0.000123,2]
[348788328,1736783448239,-996.24160345,0.000123,2]
[348788329,1736783448250,-3624.14394963,0.000123,2]
[348788330,1736783448262,-694.7475615,0.000123,2]
[348788331,1736783448273,-319.89095974,0.000123,2]
[348788332,1736783448284,-39789.9104,0.000123,2]
[348788333,1736783448295,-38735.71768653,0.000123,2]
[348788334,1736783448323,-15099.985,0.000123,2]
[348788335,1736783448334,-1400.27012335,0.000123,2]
[348788337,1736783479011,321.19619421,0.00021,30]
[348788338,1736783491754,153.4,0.000209,31]
[348788339,1736783491823,153.4,0.000209,31]
[348788340,1736783491871,153.4,0.000209,31]
[348788341,1736783491934,153.4,0.000209,31]
[348788342,1736783491994,153.4,0.000209,31]
[348788343,1736783492052,153.4,0.000209,31]
[348788344,1736783492115,153.4,0.000209,31]
[348788345,1736783497078,5050.0,0.00021,35]
[348788347,1736783597360,2000.0,0.00022883,120]
[348788348,1736783703013,164.6755549,0.00023,120]
[348788349,1736783703060,2580.5582349,0.00023,120]
[348788350,1736783849396,248.41150031,8.219e-05,2]
[348788351,1736783849419,405.45849969,8.219e-05,2]
[348788352,1736784097589,160.0,0.00021,30]
[348788353,1736784097689,153.41,0.000209,31]
[348788354,1736784097753,153.41,0.000209,31]
[348788355,1736784097811,153.41,0.000209,31]
[348788356,1736784097875,153.41,0.000209,31]
[348788357,1736784097933,153.41,0.000209,31]
[348788358,1736784097996,153.41,0.000209,31]
[348788359,1736784098052,153.41,0.000209,31]
[348788360,1736784307722,1564.08,0.00021,30]
[348788361,1736784392716,1511.0,0.00021,30]
[348788386,1736784561924,20000.0,8.529e-05,2]
[348788402,1736784631872,-1000.0,8.975e-05,2]
[348788403,1736784631882,-300.0,8.986e-05,2]
[348788404,1736784631891,-23890.0,8.987e-05,2]
[348788405,1736784631901,-374.08,8.994e-05,2]
[348788406,1736784631911,-250.0,9.575e-05,2]
[348788407,1736784631920,-340.6,9.642e-05,2]
[348788408,1736784631929,-250.0,9.661e-05,2]
[348788409,1736784631939,-425.96,9.661e-05,2]
[348788410,1736784631949,-200.0,9.687e-05,2]
[348788411,1736784631958,-250.0,9.694e-05,2]
[348788412,1736784631968,-164.81,9.722e-05,2]
[348788413,1736784631977,-304.7,9.783e-05,2]
[348788414,1736784631986,-420.0,9.885e-05,2]
[348788415,1736784631996,-730.20298977,9.977e-05,2]
[348788416,1736784632005,-730.20298977,9.978e-05,2]
[348788417,1736784632014,-32400.20156819,9.979e-05,2]
[348788418,1736784632026,-83834.07739841,9.979e-05,2]
[348788419,1736784632036,-500.0,9.98e-05,2]
[348788420,1736784632046,-1572.32,9.98e-05,2]
[348788421,1736784632056,-1604.05,9.98e-05,2]
[348788422,1736784632065,-896.25,9.98e-05,2]
[348788423,1736784632077,-500.0,9.98e-05,2]
[348788424,1736784632087,-798.97,9.98e-05,2]
[348788425,1736784632097,-500.0,9.98e-05,2]
[348788426,1736784632106,-500.0,9.98e-05,2]
[348788427,1736784632116,-500.0,9.98e-05,2]
[348788428,1736784632125,-566.2,9.98e-05,2]
[348788429,1736784632134,-500.0,9.98e-05,2]
[348788430,1736784632144,-500.0,9.98e-05,2]
[348788431,1736784632154,-743.11,9.98e-05,2]
[348788432,1736784632163,-500.0,9.98e-05,2]
[348788433,1736784632173,-1476.23,9.98e-05,2]
[348788434,1736784632183,-595.67,9.98e-05,2]
[348788435,1736784632193,-1317.21,9.98e-05,2]
[348788436,1736784632203,-500.0,9.98e-05,2]
[348788437,1736784632212,-500.0,9.98e-05,2]
[348788438,1736784632222,-4415.29,9.98e-05,2]
[348788439,1736784632232,-500.0,9.98e-05,2]
[348788440,1736784632243,-200.0,9.981e-05,2]
[348788441,1736784632252,-20274.86556523,9.981e-05,2]
[348788442,1736784632261,-101624.92239836,9.981e-05,2]
[348788443,1736784632279,-5292.25501952,9.981e-05,2]
[348788444,1736784632290,-9317.10154872,9.981e-05,2]
[348788445,1736784632300,-1428.12,9.983e-05,2]
[348788446,1736784632309,-788.22,9.983e-05,2]
[348788447,1736784632319,-500.0,9.983e-05,2]
[348788448,1736784632330,-500.0,9.983e-05,2]
[348788449,1736784632340,-500.0,9.983e-05,2]
[348788450,1736784632349,-1276.19,9.983e-05,2]
[348788451,1736784632359,-751.07,9.983e-05,2]
[348788452,1736784632369,-1202.55,9.983e-05,2]
[348788453,1736784632379,-1399.18,9.983e-05,2]
[348788454,1736784632389,-500.0,9.983e-05,2]
[348788455,1736784632399,-1000.0,9.983e-05,2]
[348788456,1736784632409,-20274.86556523,9.984e-05,2]
[348788457,1736784632419,-116234.2789666,9.985e-05,2]
[348788458,1736784632429,-20274.86556523,9.985e-05,2]
[348788459,1736784632439,-730.20298977,9.986e-05,2]
[348788460,1736784632449,-730.20298977,9.987e-05,2]
[348788461,1736784632458,-20274.86556523,9.988e-05,2]
[348788462,1736784632468,-730.20298977,9.99e-05,2]
[348788463,1736784632477,-116234.2789666,9.991e-05,2]
[348788464,1736784632488,-730.20298977,9.991e-05,2]
[348788465,1736784632498,-116234.2789666,9.992e-05,2]
[348788466,1736784632507,-116234.2789666,9.992e-05,2]
[348788467,1736784632517,-200.0,9.994e-05,2]
[348788469,1736784632527,-200.0,9.995e-05,2]
[348788471,1736784632536,-20274.86556523,9.996e-05,2]
[348788473,1736784632546,-20274.86556523,9.997e-05,2]
[348788475,1736784632555,-201.13516332,0.0001,2]
[348788476,1736784632564,-7748.1751823,0.0001,4]
[348788478,1736784632577,-1000.0,0.00010097,2]
[348788480,1736784632587,-169.7,0.00010137,2]
[348788482,1736784632597,-1032.3608,0.00010219,2]
[348788484,1736784632607,-500.0,0.00010254,2]
[348788486,1736784632616,-1572.32,0.00010254,2]
[348788487,1736784632625,-1604.05,0.00010254,2]
[348788489,1736784632634,-896.25,0.00010254,2]
[348788491,1736784632643,-500.0,0.00010254,2]
[348788493,1736784632653,-798.97,0.00010254,2]
[348788495,1736784632662,-500.0,0.00010254,2]
[348788497,1736784632672,-500.0,0.00010254,2]
[348788498,1736784632682,-500.0,0.00010254,2]
[348788500,1736784632693,-566.2,0.00010254,2]
[348788502,1736784632703,-500.0,0.00010254,2]
[348788504,1736784632713,-743.11,0.00010254,2]
[348788506,1736784632723,-500.0,0.00010254,2]
[348788508,1736784632734,-1476.23,0.00010254,2]
[348788509,1736784632743,-595.67,0.00010254,2]
[348788511,1736784632754,-1317.21,0.00010254,2]
[348788513,1736784632765,-500.0,0.00010254,2]
[348788515,1736784632775,-4415.29,0.00010254,2]
[348788516,1736784632784,-500.0,0.00010254,2]
[348788517,1736784632795,-1428.12,0.00010257,2]
[348788518,1736784632804,-788.22,0.00010257,2]
[348788519,1736784632814,-500.0,0.00010257,2]
[348788520,1736784632826,-500.0,0.00010257,2]
[348788521,1736784632835,-500.0,0.00010257,2]
[348788522,1736784632845,-1276.19,0.00010257,2]
[348788523,1736784632855,-751.07,0.00010257,2]
[348788524,1736784632866,-1202.55,0.00010257,2]
[348788525,1736784632876,-1399.18,0.00010257,2]
[348788526,1736784632886,-500.0,0.00010257,2]
[348788527,1736784632896,-1000.0,0.00010257,2]
[348788528,1736784632905,-1000.0,0.000104,2]
[348788529,1736784632915,-500.0,0.00010429,2]
[348788530,1736784632925,-653.87,0.00010466,2]
[348788531,1736784632935,-500.0,0.00010528,2]
[348788532,1736784632945,-1572.32,0.00010528,2]
[348788533,1736784632956,-1604.05,0.00010528,2]
[348788534,1736784632967,-896.25,0.00010528,2]
[348788535,1736784632977,-500.0,0.00010528,2]
[348788536,1736784632986,-798.97,0.00010528,2]
[348788537,1736784632995,-500.0,0.00010528,2]
[348788538,1736784633005,-500.0,0.00010528,2]
[348788539,1736784633015,-500.0,0.00010528,2]
[348788540,1736784633025,-566.2,0.00010528,2]
[348788541,1736784633035,-500.0,0.00010528,2]
[348788542,1736784633045,-743.11,0.00010528,2]
[348788543,1736784633055,-500.0,0.00010528,2]
[348788544,1736784633065,-1476.23,0.00010528,2]
[348788545,1736784633076,-595.67,0.00010528,2]
[348788546,1736784633086,-1317.21,0.00010528,2]
[348788547,1736784633096,-500.0,0.00010528,2]
[348788548,1736784633107,-4415.29,0.00010528,2]
[348788549,1736784633117,-500.0,0.00010528,2]
[348788550,1736784633127,-500.0,0.00010529,2]
[348788551,1736784633136,-500.0,0.00010529,2]
[348788552,1736784633147,-500.0,0.00010529,2]
[348788553,1736784633157,-500.0,0.00010529,2]
[348788554,1736784633166,-500.0,0.00010529,2]
[348788555,1736784633176,-500.0,0.00010529,2]
[348788556,1736784633186,-500.0,0.0001053,2]
[348788557,1736784633196,-500.0,0.0001053,2]
[348788558,1736784633207,-500.0,0.0001053,2]
[348788559,1736784633217,-500.0,0.0001053,2]
[348788560,1736784633227,-500.0,0.0001053,2]
[348788561,1736784633237,-500.0,0.0001053,2]
[348788562,1736784633246,-500.0,0.0001053,2]
[348788563,1736784633260,-500.0,0.0001053,2]
[348788564,1736784633270,-500.0,0.0001053,2]
[348788565,1736784633280,-500.0,0.0001053,2]
[348788566,1736784633290,-500.0,0.0001053,2]
[348788567,1736784633301,-500.0,0.0001053,2]
[348788568,1736784633560,-500.0,0.0001053,2]
[348788569,1736784633572,-500.0,0.0001053,2]
[348788570,1736784633582,-500.0,0.0001053,2]
[348788571,1736784633592,-500.0,0.0001053,2]
[348788572,1736784633602,-500.0,0.0001053,2]
[348788573,1736784633612,-500.0,0.0001053,2]
[348788574,1736784633622,-500.0,0.0001053,2]
[348788575,1736784633632,-500.0,0.0001053,2]
[348788576,1736784633641,-500.0,0.0001053,2]
[348788577,1736784633651,-500.0,0.0001053,2]
[348788578,1736784633661,-500.0,0.0001053,2]
[348788579,1736784633672,-500.0,0.0001053,7]
[348788580,1736784633685,-500.0,0.0001053,2]
[348788581,1736784633695,-500.0,0.0001053,2]
[348788582,1736784633705,-500.0,0.0001053,2]
[348788583,1736784633714,-500.0,0.0001053,2]
[348788584,1736784633724,-500.0,0.0001053,2]
[348788585,1736784633734,-500.0,0.0001053,2]
[348788586,1736784633743,-500.0,0.0001053,2]
[348788587,1736784633753,-500.0,0.0001053,2]
[348788588,1736784633763,-500.0,0.0001053,2]
[348788589,1736784633773,-500.0,0.0001053,2]
[348788590,1736784633782,-500.0,0.0001053,2]
[348788591,1736784633792,-500.0,0.0001053,2]
[348788592,1736784633802,-500.0,0.0001053,2]
[348788593,1736784633812,-500.0,0.0001053,2]
[348788594,1736784633825,-500.0,0.0001053,2]
[348788595,1736784633836,-500.0,0.0001053,2]
[348788596,1736784633846,-500.0,0.0001053,2]
[348788597,1736784633857,-500.0,0.0001053,2]
[348788598,1736784633868,-500.0,0.0001053,2]
[348788599,1736784633879,-500.0,0.0001053,2]
[348788600,1736784633888,-500.0,0.0001053,2]
[348788601,1736784633898,-500.0,0.0001053,2]
[348788602,1736784633908,-500.0,0.0001053,2]
[348788603,1736784633917,-500.0,0.0001053,2]
[348788604,1736784633928,-500.0,0.0001053,2]
[348788605,1736784633938,-500.0,0.0001053,2]
[348788606,1736784633948,-500.0,0.0001053,2]
[348788607,1736784633957,-500.0,0.0001053,2]
[348788608,1736784633967,-500.0,0.0001053,2]
[348788609,1736784633977,-500.0,0.0001053,2]
[348788610,1736784633988,-500.0,0.0001053,2]
[348788611,1736784633998,-500.0,0.0001053,2]
[348788612,1736784634008,-500.0,0.0001053,2]
[348788613,1736784634018,-500.0,0.0001053,2]
[348788614,1736784634027,-500.0,0.0001053,2]
[348788615,1736784634037,-540.37,0.0001053,2]
[348788616,1736784634046,-500.0,0.0001053,2]
[348788617,1736784634055,-500.0,0.0001053,2]
[348788618,1736784634065,-500.0,0.0001053,2]
[348788619,1736784634079,-500.0,0.0001053,2]
[348788620,1736784634089,-500.0,0.0001053,2]
[348788621,1736784634101,-500.0,0.0001053,2]
[348788622,1736784634111,-500.0,0.0001053,2]
[348788623,1736784634122,-500.0,0.0001053,2]